Cogmind - Beta 12 @@@ ROGUE MODE // 2023.04.22 @ 14:52:02 Player: HeartGrenade Result: Destroyed by S-43 Plague with Heavy Machine Gun Performance ------------- Evolutions (7) 3500 Regions Visited (21) 4200 Robots Destroyed (184) 920 Value Destroyed (6451) 6451 Prototype IDs (31) 620 Alien Tech Used (2) 400 Bonus (1331) 1331 TOTAL SCORE: 17422 Bonus ------- High Alert Combat Kills 340 Follower Combat Kills 423 Met Imprinter 300 Met Zhirov 300 Friendly Fire -32 Cogmind --------- Core Integrity 0/1300 Matter 290/300 Energy 98/100 System Corruption 2% Temperature Cool (0) Movement Core (50) Location -3/Research Parts ------- > --- POWER (2) -------- (None) > --- PROPULSION (6) --- (None) > --- UTILITY (10) ----- Advanced Targeting Computer > --- WEAPON (3) ------- (None) > --- INVENTORY (5) ---- Compact Matter Pod (150) Advanced Targeting Computer Enhanced Nova Cannon Improved Heavy Machine Gun Peak State ------------ > --- POWER ------------ Improved Deuterium Engine Angular Momentum Engine > --- PROPULSION ------- Improved Medium Treads Spiked Medium Treads Spiked Medium Treads Advanced Medium Treads > --- UTILITY ---------- Advanced Heat Sink Advanced Heat Sink High-capacity Storage Unit Improved Terrain Scanner Advanced Terrain Scan Processor Advanced Targeting Computer Hardened Medium Armor Plating Layered Heavy Armor Plating Advanced Shield Generator > --- WEAPON ----------- Gatling Laser Advanced Plasma Cannon Improved Heavy Machine Gun > --- INVENTORY -------- Fusion Reactor Light Antimatter Reactor Advanced Treads Improved Medium Treads Spiked Medium Treads Advanced Heat Sink Advanced Heat Sink Improved Cooling System Compact Matter Pod Seismic Detector Layered Heavy Armor Plating Layered Heavy Armor Plating Improved System Restoration Module Transdimensional Reconstructor Advanced Plasma Cannon Advanced Plasma Cannon Heavy Phase Cannon Heavy Missile Launcher [Rating: 100] Favorites ----------- Power Improved Ion Engine Engine Improved Ion Engine Reactor Light Antimatter Reactor Propulsion Advanced Treads Treads Advanced Treads Leg Myomer Leg Wheel Wheel Hover Unit Improved Antigrav System Utility Advanced Targeting Computer Device Improved Heat Sink Storage High-capacity Storage Unit Processor Advanced Targeting Computer Hackware Hacking Suite Protection Hardened Medium Armor Plating Weapon Enhanced Autogun Energy Gun Improved EM Shotgun Energy Cannon Enhanced Nova Cannon Ballistic Gun Enhanced Autogun Ballistic Cannon Heavy Flak Cannon Launcher Heavy Missile Launcher Impact Weapon Heavy Flail Build | -11 -10 -9 -9 -9 -8 -8 -7 -7 -7 -7 -6 -6 -5 -5 -5 -5 -4 -4 -4 -4 -3 ------- Run | Jun Mat Mat Min Exi Min Mat Fac Low Low Zio Pro Fac Fac Upp Upp Zhi Pro Fac Arm Lab Res Slots Evolved 14 | . . 2 . . . 2 2 . . . . 2 2 . . . . 2 . . 2 Power 1 | . . . . . . . . . . . . 1 . . . . . . . . . Propulsion 4 | . . 1 . . . 1 . . . . . . . . . . . . . . 2 Utility 8 | . . 1 . . . 1 2 . . . . 1 1 . . . . 2 . . . Weapon 1 | . . . . . . . . . . . . . 1 . . . . . . . . Parts Attached 183 | 4 3 12 7 1 5 25 9 1 . . 3 35 14 . 9 4 11 14 10 . 16 Power 16 | . . 1 . . . 1 1 . . . . 4 2 . . . . 1 2 . 4 Engine 9 | . . 1 . . . 1 1 . . . . 4 2 . . . . . . . . Core . | . . . . . . . . . . . . . . . . . . . . . . Reactor 7 | . . . . . . . . . . . . . . . . . . 1 2 . 4 Propulsion 41 | 2 . 5 1 . 1 6 2 . . . . 6 2 . 4 . 2 4 1 . 5 Treads 34 | 2 . 4 1 . 1 6 2 . . . . 6 2 . 4 . 2 4 . . . Leg 3 | . . 1 . . . . . . . . . . . . . . . . 1 . 1 Wheel 3 | . . . . . . . . . . . . . . . . . . . . . 3 Hover 1 | . . . . . . . . . . . . . . . . . . . . . 1 Flight . | . . . . . . . . . . . . . . . . . . . . . . Utility 62 | . 3 1 1 1 . 6 6 1 . . 3 12 4 . 2 4 3 8 4 . 3 Device 31 | . . . . 1 . 2 2 1 . . 2 5 4 . 1 3 2 5 2 . 1 Storage 3 | . 1 . . . . 1 . . . . . 1 . . . . . . . . . Processor 10 | . 2 . . . . 1 1 . . . . 2 . . . . . 1 2 . 1 Hackware 2 | . . . . . . 1 . . . . . . . . . . . . . . 1 Protection 16 | . . 1 1 . . 1 3 . . . 1 4 . . 1 1 1 2 . . . Artifact . | . . . . . . . . . . . . . . . . . . . . . . Weapon 64 | 2 . 5 5 . 4 12 . . . . . 13 6 . 3 . 6 1 3 . 4 Energy Gun 18 | . . 3 3 . 3 6 . . . . . 1 1 . 1 . . . . . . Energy Cannon 13 | . . 1 . . . 1 . . . . . . 1 . 1 . 2 . 3 . 4 Ballistic Gun 18 | 2 . 1 . . . 3 . . . . . 7 2 . 1 . 2 . . . . Ballistic Cannon 1 | . . . . . . . . . . . . . 1 . . . . . . . . Launcher 9 | . . . 2 . 1 2 . . . . . 1 . . . . 2 1 . . . Special Weapon . | . . . . . . . . . . . . . . . . . . . . . . Impact Weapon 5 | . . . . . . . . . . . . 4 1 . . . . . . . . Slashing Weapon . | . . . . . . . . . . . . . . . . . . . . . . Piercing Weapon . | . . . . . . . . . . . . . . . . . . . . . . Special Melee Weapon . | . . . . . . . . . . . . . . . . . . . . . . Unidentified Prototypes 10 | . . 2 . . . 2 . . . . . 1 . . . 3 . . 2 . . Parts Lost 65 | . . 2 2 . 1 4 1 . . . . 12 3 . . . 1 15 7 . 17 Power 11 | . . . . . . . . . . . . 3 . . . . . 2 2 . 4 Propulsion 20 | . . 1 . . 1 1 . . . . . 2 2 . . . . 4 2 . 7 Utility 23 | . . . 1 . . 1 1 . . . . 6 1 . . . . 6 3 . 4 Weapon 11 | . . 1 1 . . 2 . . . . . 1 . . . . 1 3 . . 2 Highest Loss Streak 15 | . . 2 1 . 1 2 1 . . . . 2 2 . . . 1 15 7 . 11 To Critical Strikes . | . . . . . . . . . . . . . . . . . . . . . . Average Slot Usage (%) 92 | . 83 90 94 77 99 98 99 100 100 100 99 91 99 100 96 93 92 90 70 63 44 Engine 8 | . . 5 11 11 11 9 6 7 7 7 7 9 11 11 11 11 11 9 . . . Treads 26 | . 28 25 33 33 32 34 30 30 30 30 30 26 23 23 23 23 22 20 14 5 2 Device 13 | . . . . 11 11 5 17 13 15 15 15 14 19 29 26 22 19 20 14 5 3 Storage 7 | . 11 11 11 11 11 9 7 7 7 7 7 6 5 5 5 5 5 5 5 5 3 Processor 7 | . 14 11 5 . . 8 10 8 7 7 7 8 5 5 5 5 5 10 15 21 15 Protection 9 | . . 11 11 11 11 8 8 15 15 15 14 11 13 5 4 5 8 9 4 . . Energy Gun 4 | . . 6 18 . 20 14 . . . . . . 7 5 5 5 5 4 . . . Ballistic Gun 9 | . 28 15 . . . 1 15 15 15 15 15 11 7 11 9 11 5 4 . . . Naked Turns 25 | . . . . . . . . . . . . . . . . . . . . . 25 Heaviest Build 116 | 3 23 38 38 33 39 61 65 66 66 66 69 84 99 88 107 102 114 116 100 88 93 Greatest Support 118 | 3 40 60 60 60 60 84 84 84 84 84 84 102 102 96 108 108 116 118 88 25 30 Greatest Overweight (x) 7 | . . 1 . . . . . . . . . . . . 1 . 1 . 3 3 7 Average Overweight (x) . | . . . . . . . . . . . . . . . . . . . . 3 1 Largest Inventory Capacity 20 | 5 15 15 15 15 15 20 20 20 20 20 20 20 20 20 20 20 20 20 20 20 20 Average Capacity 18 | 5 13 15 15 15 15 17 20 20 20 20 20 20 20 20 20 20 20 20 20 20 16 Most Carried 20 | 2 8 15 15 15 15 20 20 20 20 20 20 20 20 20 20 20 20 20 17 13 15 Average Carried 17 | 1 7 11 14 14 12 15 19 19 20 20 19 18 19 19 19 19 19 18 13 13 11 Final Capacity 20 | 5 15 15 15 15 15 20 20 20 20 20 20 20 20 20 20 20 20 20 20 20 5 Final Carried 20 | 2 8 15 14 15 12 20 20 20 20 20 19 20 20 20 20 20 19 12 13 13 4 Class Distribution -------------------- 64% | Mutant 18% | Scavenger-Mutant 12% | Tank Dominant Class ---------------- Mutant | -10/Materials Mutant | -9/Materials Scavenger-Mutant | -9/Mines Scavenger-Mutant | -9/Exiles Scavenger-Mutant | -8/Mines Mutant | -8/Materials Scavenger-Mutant | -7/Factory Mutant | -7/Lower Caves Mutant | -7/Lower Caves Mutant | -7/Zion Mutant | -6/Proximity Caves Mutant | -6/Factory Scavenger-Mutant | -5/Factory Tank | -5/Upper Caves Tank | -5/Upper Caves Tank | -5/Zhirov Mutant | -4/Proximity Caves Tank | -4/Factory Commander-Mutant | -4/Armory Mutant | -4/Lab Mutant | -3/Research Resources | -11 -10 -9 -9 -9 -8 -8 -7 -7 -7 -7 -6 -6 -5 -5 -5 -5 -4 -4 -4 -4 -3 ----------- Run | Jun Mat Mat Min Exi Min Mat Fac Low Low Zio Pro Fac Fac Upp Upp Zhi Pro Fac Arm Lab Res Matter Collected 4589 | 232 88 278 172 18 46 319 401 102 . . 150 1464 296 39 109 . 267 269 64 . 275 Remotely . | . . . . . . . . . . . . . . . . . . . . . . Salvage Created 6985 | . 106 731 220 . 362 1305 237 62 . . 142 1746 402 29 36 . 260 790 26 . 531 Parts 362 | . 7 36 9 . 25 83 13 2 . . 9 76 16 2 1 . 16 34 . . 33 Haulers Intercepted 5 | . . 2 . . . 3 . . . . . . . . . . . . . . . Recyclers Shooed 3 | . . . . . . . 1 . . . . 2 . . . . . . . . . Parts Field Recycled . | . . . . . . . . . . . . . . . . . . . . . . Retrieved Matter . | . . . . . . . . . . . . . . . . . . . . . . Parts Self-Destructed 41 | . . . . . . . . 4 . . 18 . . 2 3 . 14 . . . . Prevented 2 | . . . . . . . . . . . 2 . . . . . . . . . . Kills | -11 -10 -9 -9 -9 -8 -8 -7 -7 -7 -7 -6 -6 -5 -5 -5 -5 -4 -4 -4 -4 -3 ------- Run | Jun Mat Mat Min Exi Min Mat Fac Low Low Zio Pro Fac Fac Upp Upp Zhi Pro Fac Arm Lab Res Combat Hostiles Destroyed 146 | . 2 14 7 . 10 27 2 3 . . 2 32 6 . 2 . 12 15 3 . 9 Guns 92 | . 2 14 7 . 4 13 2 3 . . 2 29 4 . 2 . 4 6 . . . Cannons 14 | . . . . . . 2 . . . . . . . . . . 1 1 3 . 7 AOE 33 | . . . . . 5 11 . . . . . 2 2 . . . 7 6 . . . Classes Destroyed 19 | . 2 2 2 . 3 3 2 . . . 1 1 . 1 . . . 1 1 . . Worker 11 | . . . . . . 2 . . . . . 1 2 . . . . 2 . . 4 Builder 9 | . 1 . . . . 2 . . . . . 2 1 . . . . 3 . . . Tunneler 6 | . . . . . 2 1 . . . . . 1 2 . . . . . . . . Hauler 5 | . . 2 . . . 3 . . . . . . . . . . . . . . . Recycler 6 | . . . . . . . 1 . . . . 2 1 . . . . 2 . . . Minesweeper 1 | . . . . . . . . . . . . . . 1 . . . . . . . Mechanic 1 | . . . . . . . . . . . . . . . . . . 1 . . . Operator 1 | . . . . . . . 1 . . . . . . . . . . . . . . Watcher 2 | . . . . . . 1 1 . . . . . . . . . . . . . . Swarmer 47 | . . . . . 4 7 . 3 . . . 10 2 . 2 . 9 5 . . 5 Grunt 48 | . 2 11 2 . 4 12 . . . . . 11 1 . . . . 5 . . . Brawler 5 | . . . 1 . 1 . . . . . . 3 . . . . . . . . . Duelist 5 | . . . . . 1 1 . . . . . 1 1 . . . . 1 . . . Protector 2 | . . . . . . . . . . . 1 1 . . . . . . . . . Sentry 15 | . . 3 . . . 6 2 . . . 1 3 . . . . . . . . . Demolisher 3 | . . . . . . . . . . . . . . . . . . . 3 . . Hunter 5 | . . . . . . 1 . . . . . . . . . . . 2 . . 2 Programmer 12 | . . . . . . . . . . . . 3 2 . . . 3 2 . . 2 Assembled 4 | . . . 4 . . . . . . . . . . . . . . . . . . Best Kill Streak 16 | . 1 5 3 . 6 11 2 3 . . 1 4 3 1 2 . 5 16 3 . 6 Combat Bots Only 9 | . 1 3 3 . 4 8 1 3 . . 1 4 2 . 2 . 5 9 3 . 4 Max Kills in Single Turn 5 | . 1 1 1 . 4 5 1 1 . . 1 2 3 1 1 . 3 3 1 . 1 Gunslinging 1 | . . . . . . . . . . . . 1 . . . . . . . . . Exploded 4 | . . . . . 4 3 . . . . . 1 2 . . . 3 2 . . . Melee . | . . . . . . . . . . . . . . . . . . . . . . Uniques/NPCs Destroyed . | . . . . . . . . . . . . . . . . . . . . . . Combat | -11 -10 -9 -9 -9 -8 -8 -7 -7 -7 -7 -6 -6 -5 -5 -5 -5 -4 -4 -4 -4 -3 -------- Run | Jun Mat Mat Min Exi Min Mat Fac Low Low Zio Pro Fac Fac Upp Upp Zhi Pro Fac Arm Lab Res Damage Taken 15740 | . 120 762 577 . 300 963 423 73 111 . 44 2807 538 . 34 . 1416 3281 1361 . 2930 Core 2322 | . 15 121 120 . 60 115 58 . . . . 198 . . . . 27 204 102 . 1302 Absorbed by Shields 775 | . . . . . . . . . . . . . 106 . 13 . 279 377 . . . Regen/Repaired (Parts) 65 | . . . . . . . 65 . . . . . . . . . . . . . . Core Remaining (%) 78 | 100 94 . . . 24 79 . . . . 91 76 . . . . 97 . . 67 . Volleys Fired 461 | . 10 46 27 . 15 46 24 7 . . 15 129 22 4 6 . 36 31 8 . 35 Largest 3 | . 2 2 2 . 2 2 2 2 . . 2 2 3 3 3 . 3 3 2 . 2 Hottest 240 | . 40 90 90 . 90 108 50 50 . . 50 70 135 95 120 . 195 193 240 . 240 Shots Fired 875 | . 21 92 37 . 29 87 48 14 . . 30 241 56 12 10 . 59 66 15 . 58 Gun 699 | . 21 92 28 . 27 72 48 14 . . 30 238 45 12 6 . 26 40 . . . Cannon 144 | . . . . . . 10 . . . . . . 11 . 4 . 30 16 15 . 58 Launcher 32 | . . . 9 . 2 5 . . . . . 3 . . . . 3 10 . . . Special . | . . . . . . . . . . . . . . . . . . . . . . Kinetic 493 | . 21 84 . . . . 48 14 . . 30 216 36 8 4 . 13 19 . . . Thermal 205 | . . . . . . . . . . . . 22 20 4 6 . 43 37 15 . 58 Explosive 32 | . . . 9 . 2 5 . . . . . 3 . . . . 3 10 . . . Electromagnetic 145 | . . 8 28 . 27 82 . . . . . . . . . . . . . . . Robot Hit Streak 38 | . 15 15 8 . 9 25 29 7 . . 5 38 9 8 6 . 19 19 16 . 22 Robot Miss Streak 5 | . 2 2 3 . 3 3 2 3 . . 2 4 5 1 1 . 2 2 . . 2 Penetration Max . | . . . . . . . . . . . . . . . . . . . . . . Secondary Targets 8 | . . 3 . . 1 1 . . . . . 3 . . . . . . . . . Max Gunslinging Chain 1 | . . 1 . . 1 1 . . . . . 1 . . . . . . . . . Shots Hit Robots 645 | . 16 72 21 . 25 69 38 8 . . 21 188 39 10 5 . 24 57 13 . 39 Core Hits 378 | . 6 33 18 . 25 65 12 4 . . 9 83 27 3 4 . 20 52 5 . 12 Critical Kills 4 | . . . . . . . . . . . . 1 . . . . . 1 . . 2 Critical Parts Destroyed 2 | . 1 1 . . . . . . . . . . . . . . . . . . . Critical Strikes 8 | . 1 1 . . . . . . . . . 3 . . . . . 1 . . 2 Burn 2 | . . . . . . . . . . . . 2 . . . . . . . . . Meltdown 3 | . . . . . . . . . . . . . . . . . . 1 . . 2 Destroy 3 | . 1 1 . . . . . . . . . 1 . . . . . . . . . Melee Attacks 11 | . . . . . . . . . . . . 9 2 . . . . . . . . Impact 11 | . . . . . . . . . . . . 9 2 . . . . . . . . Slashing . | . . . . . . . . . . . . . . . . . . . . . . Piercing . | . . . . . . . . . . . . . . . . . . . . . . Sneak Attacks . | . . . . . . . . . . . . . . . . . . . . . . Combat Hostiles . | . . . . . . . . . . . . . . . . . . . . . . Follow-up Attacks . | . . . . . . . . . . . . . . . . . . . . . . Damage Inflicted 17873 | . 177 927 284 . 780 2510 647 138 . . 379 3972 1206 197 97 . 1102 3170 558 . 1729 Guns 9467 | . 177 830 284 . 366 991 647 138 . . 379 3504 607 197 97 . 412 838 . . . Cannons 3306 | . . . . . . 147 . . . . . . 188 . . . 215 470 558 . 1728 Explosions 5049 | . . 97 . . 410 1372 . . . . . 422 411 . . . 475 1862 . . . Melee 46 | . . . . . . . . . . . . 46 . . . . . . . . . Ramming 5 | . . . . . 4 . . . . . . . . . . . . . . . 1 Kinetic 6359 | . 177 715 . . . . 647 138 . . 379 3119 534 120 53 . 141 336 . . . Thermal 5557 | . . 41 . . 65 529 . . . . . 385 672 77 44 . 486 972 558 . 1728 Explosive 4003 | . . 56 . . 345 843 . . . . . 422 . . . . 475 1862 . . . Electromagnetic 1903 | . . 115 284 . 366 1138 . . . . . . . . . . . . . . . Impact 46 | . . . . . . . . . . . . 46 . . . . . . . . . Slashing . | . . . . . . . . . . . . . . . . . . . . . . Piercing . | . . . . . . . . . . . . . . . . . . . . . . Highest Corruption 14 | . 3 . 5 5 5 . . . . . . 14 . . . . 9 2 2 2 2 Average Corruption 5 | . 2 . 5 5 5 . . . . . . 7 . . . . 8 1 2 2 1 Corruption Purged . | . . . . . . . . . . . . . . . . . . . . . . Corruption Blocked . | . . . . . . . . . . . . . . . . . . . . . . Effects 94 | . 6 . 9 7 11 . . . . . . 40 . . . . 12 4 4 1 . Message Errors 21 | . 2 . . 1 3 . . . . . . 9 . . . . 2 1 2 1 . Matter Fused 28 | . 1 . 3 1 3 . . . . . . 15 . . . . 2 1 2 . . Heat Flow Errors 9 | . 1 . 2 1 2 . . . . . . 2 . . . . 1 . . . . Energy Discharges 10 | . 1 . 2 . . . . . . . . 4 . . . . 3 . . . . Parts Rejected 2 | . . . . . . . . . . . . 2 . . . . . . . . . Data Loss (minor) 12 | . . . 1 3 2 . . . . . . 4 . . . . 2 . . . . Data Loss (major) 4 | . . . . 1 . . . . . . . 2 . . . . . 1 . . . Misfires 5 | . 1 . 1 . 1 . . . . . . 1 . . . . 1 . . . . Alerts 1 | . . . . . . . . . . . . . . . . . 1 . . . . Weapon Failures 2 | . . . . . . . . . . . . 1 . . . . . 1 . . . Overload Shots . | . . . . . . . . . . . . . . . . . . . . . . Overflow Damage 671 | . . . . . 2 108 . . . . . . 167 . . . 4 200 109 . 81 Projectiles 235 | . . . . . . . . . . . . . . . . . 4 41 109 . 81 Explosions 436 | . . . . . 2 108 . . . . . . 167 . . . . 159 . . . Melee . | . . . . . . . . . . . . . . . . . . . . . . Knockbacks 5 | . . . . . . . . . . . . . 5 . . . . . . . . Impact . | . . . . . . . . . . . . . . . . . . . . . . Kinetic 5 | . . . . . . . . . . . . . 5 . . . . . . . . Secondary . | . . . . . . . . . . . . . . . . . . . . . . Self-Inflicted Damage 632 | . . 57 24 . 34 260 . . . . . 30 156 . . . . 71 . . . Shots 14 | . . 1 1 . 2 5 . . . . . 1 2 . . . . 2 . . . Rammed 2 | . . . . . 1 . . . . . . . . . . . . . . . 1 Targets Rammed 2 | . . . . . 1 . . . . . . . . . . . . . . . 1 Kicked . | . . . . . . . . . . . . . . . . . . . . . . Crushed . | . . . . . . . . . . . . . . . . . . . . . . Highest Temperature 384 | . 193 174 219 200 384 256 1 . . . . 168 278 . 14 . 174 15 52 . 195 Average Temperature 80 | . 113 37 66 101 171 73 1 . . . . 31 121 . 10 . 39 6 35 . 41 Received Heat Transfer 2664 | . 69 342 36 . 108 333 126 . . . . 763 98 . . . 60 420 . . 309 Effects 3 | . . . . . 1 . . . . . . . 2 . . . . . . . . Interference 3 | . . . . . 1 . . . . . . . 2 . . . . . . . . Siege Activations . | . . . . . . . . . . . . . . . . . . . . . . Robots Corrupted 2 | . . . . . 1 1 . . . . . . . . . . . . . . . Combat Hostiles 2 | . . . . . 1 1 . . . . . . . . . . . . . . . Parts Fried 9 | . . 1 . . 2 6 . . . . . . . . . . . . . . . Impact Corruptions . | . . . . . . . . . . . . . . . . . . . . . . Robots Melted 5 | . . . . . . . . . . . . 1 . . . . . 2 . . 2 Combat Hostiles 5 | . . . . . . . . . . . . 1 . . . . . 2 . . 2 Parts Melted 17 | . . . . . . 1 . . . . . 2 . . . . 4 4 . . 6 Heat Transferred 6975 | . . 50 . . 50 600 . . . . . 888 768 148 100 . 710 1700 481 . 1480 Parts Sabotaged . | . . . . . . . . . . . . . . . . . . . . . . Parts Stolen . | . . . . . . . . . . . . . . . . . . . . . . Parts Stripped . | . . . . . . . . . . . . . . . . . . . . . . Power Chain Reactions 8 | . . 1 . . 1 6 . . . . . . . . . . . . . . . Missiles Intercepted . | . . . . . . . . . . . . . . . . . . . . . . Alert | -11 -10 -9 -9 -9 -8 -8 -7 -7 -7 -7 -6 -6 -5 -5 -5 -5 -4 -4 -4 -4 -3 ------- Run | Jun Mat Mat Min Exi Min Mat Fac Low Low Zio Pro Fac Fac Upp Upp Zhi Pro Fac Arm Lab Res Peak Influence 754 | . 96 357 220 . 252 754 268 . . . . 600 484 . . . . 591 285 . 190 Initial 262 | . . 40 111 . . 98 211 . . . . 109 262 . . . . 65 166 . . Average 225 | . 41 195 107 . 99 308 161 . . . . 356 307 . . . . 195 186 . 63 Maximum Alert Level 3 | . . 1 1 . 1 3 1 . . . . 2 2 . . . . 2 1 . . Low Security (%) 49 | 100 100 56 67 . 93 48 54 . . . . 9 13 . . . . 54 77 . 100 Level 1 35 | . . 43 32 . 6 10 45 . . . . 56 74 . . . . 35 22 . . Level 2 14 | . . . . . . 37 . . . . . 33 12 . . . . 9 . . . Level 3 . | . . . . . . 3 . . . . . . . . . . . . . . . Level 4 . | . . . . . . . . . . . . . . . . . . . . . . Level 5 . | . . . . . . . . . . . . . . . . . . . . . . High Security . | . . . . . . . . . . . . . . . . . . . . . . Max Security . | . . . . . . . . . . . . . . . . . . . . . . Squads Dispatched 22 | . . . . . . 2 1 . . . 1 10 2 . . . . 4 . . 2 Investigation 4 | . . . . . . 1 . . . . . 3 . . . . . . . . . Extermination 6 | . . . . . . . 1 . . . . 2 1 . . . . 1 . . 1 Reinforcement 3 | . . . . . . 1 . . . . . 1 . . . . . . . . 1 Assault 3 | . . . . . . . . . . . 1 1 1 . . . . . . . . Garrison 6 | . . . . . . . . . . . . 3 . . . . . 3 . . . Intercept . | . . . . . . . . . . . . . . . . . . . . . . Searches Triggered . | . . . . . . . . . . . . . . . . . . . . . . Construction Impeded 1 | . . . . . . . . . . . . 1 . . . . . . . . . Haulers Reinforced . | . . . . . . . . . . . . . . . . . . . . . . Active Scanning Responses . | . . . . . . . . . . . . . . . . . . . . . . Cargo Convoy Interrupts . | . . . . . . . . . . . . . . . . . . . . . . Stealth | -11 -10 -9 -9 -9 -8 -8 -7 -7 -7 -7 -6 -6 -5 -5 -5 -5 -4 -4 -4 -4 -3 --------- Run | Jun Mat Mat Min Exi Min Mat Fac Low Low Zio Pro Fac Fac Upp Upp Zhi Pro Fac Arm Lab Res Distress Signals 20 | . . 1 1 . . 3 . . . . . 4 2 . . . . 4 . . 5 Communications Jammed . | . . . . . . . . . . . . . . . . . . . . . . Distress Signals . | . . . . . . . . . . . . . . . . . . . . . . Times Spotted 241 | . 4 22 7 . 10 31 5 3 1 . 10 48 15 . 2 . 14 31 11 . 27 Peak Tracking Total 11 | . 2 4 3 . 4 7 1 3 1 . 5 8 6 . 2 . 5 10 5 . 11 Tactical Retreats 19 | . 1 . . . . 2 . 1 1 . . 5 2 . . . 2 2 . . 3 Traps | -11 -10 -9 -9 -9 -8 -8 -7 -7 -7 -7 -6 -6 -5 -5 -5 -5 -4 -4 -4 -4 -3 ------- Run | Jun Mat Mat Min Exi Min Mat Fac Low Low Zio Pro Fac Fac Upp Upp Zhi Pro Fac Arm Lab Res Traps Triggered 6 | . 2 . . . . . . . . . . 3 1 . . . . . . . . Indirectly . | . . . . . . . . . . . . . . . . . . . . . . Trap Hack Attempts . | . . . . . . . . . . . . . . . . . . . . . . Triggered . | . . . . . . . . . . . . . . . . . . . . . . Disarmed . | . . . . . . . . . . . . . . . . . . . . . . Reprogrammed . | . . . . . . . . . . . . . . . . . . . . . . Reused . | . . . . . . . . . . . . . . . . . . . . . . Traps Extracted . | . . . . . . . . . . . . . . . . . . . . . . Installed . | . . . . . . . . . . . . . . . . . . . . . . Triggered 1 | . . . . . . . . . . . . . . . 1 . . . . . . Most Traps Carried 2 | . . . . . . . . . . . . . . 2 2 . . . . . . Machines | -11 -10 -9 -9 -9 -8 -8 -7 -7 -7 -7 -6 -6 -5 -5 -5 -5 -4 -4 -4 -4 -3 ---------- Run | Jun Mat Mat Min Exi Min Mat Fac Low Low Zio Pro Fac Fac Upp Upp Zhi Pro Fac Arm Lab Res Machines Disabled 10 | . . 1 . . . 3 . . . . . 2 4 . . . . . . . . Max in Single Turn 4 | . . 1 . . . 2 . . . . . 1 4 . . . . . . . . Garrison Access 1 | . . . . . . 1 . . . . . . . . . . . . . . . Machines Repaired . | . . . . . . . . . . . . . . . . . . . . . . Machines Sabotaged . | . . . . . . . . . . . . . . . . . . . . . . Overloaded Fab Kills . | . . . . . . . . . . . . . . . . . . . . . . Hacking | -11 -10 -9 -9 -9 -8 -8 -7 -7 -7 -7 -6 -6 -5 -5 -5 -5 -4 -4 -4 -4 -3 --------- Run | Jun Mat Mat Min Exi Min Mat Fac Low Low Zio Pro Fac Fac Upp Upp Zhi Pro Fac Arm Lab Res Machines Accessed 52 | . 4 4 . 1 . 8 6 . . 1 . 10 5 . 1 4 . 4 3 . 1 Terminals 29 | . 4 3 . . . 7 4 . . . . 5 1 . . . . 4 1 . . Fabricators 7 | . . . . . . . . . . . . 3 2 . . . . . 1 . 1 Repair Stations 3 | . . . . . . . 1 . . . . 1 1 . . . . . . . . Recycling Units 4 | . . 1 . . . . 1 . . . . 1 . . . . . . 1 . . Scanalyzers 1 | . . . . . . . . . . . . . 1 . . . . . . . . Garrison Access 1 | . . . . . . 1 . . . . . . . . . . . . . . . Total Hacks 149 | . 14 15 . 1 . 20 19 . . 4 . 29 9 . 1 17 . 9 8 . 3 Successful 77 | . 8 7 . 1 . 10 9 . . 4 . 11 3 . 1 17 . 4 2 . . Failed 72 | . 6 8 . . . 10 10 . . . . 18 6 . . . . 5 6 . 3 Catastrophic 16 | . . . . . . 4 2 . . . . 4 2 . . . . 2 1 . 1 Database Lockouts . | . . . . . . . . . . . . . . . . . . . . . . Manual 67 | . 10 10 . . . 8 8 . . . . 17 1 . . . . 7 6 . . Terminals 94 | . 14 14 . . . 19 16 . . . . 19 2 . . . . 9 1 . . Fabricators 18 | . . . . . . . . . . . . 7 4 . . . . . 4 . 3 Repair Stations 4 | . . . . . . . 2 . . . . 1 1 . . . . . . . . Recycling Units 7 | . . 1 . . . . 1 . . . . 2 . . . . . . 3 . . Scanalyzers 2 | . . . . . . . . . . . . . 2 . . . . . . . . Garrison Access 1 | . . . . . . 1 . . . . . . . . . . . . . . . Terminal Hacks 56 | . 7 5 . 1 . 8 6 . . 4 . 4 . . 1 17 . 3 . . . Record 8 | . 1 . . 1 . 1 . . . . . . . . . 5 . . . . . Part Schematic 11 | . 3 . . . . . . . . 4 . . . . . 4 . . . . . Robot Analysis 7 | . 1 . . . . 1 1 . . . . . . . . 4 . . . . . Prototype ID Bank 11 | . 2 1 . . . 1 1 . . . . 1 . . . 4 . 1 . . . Open Door 1 | . . . . . . . . . . . . . . . 1 . . . . . . Branch Access Points 2 | . . 1 . . . . . . . . . . . . . . . 1 . . . Terminal Index 4 | . . . . . . 1 1 . . . . 1 . . . . . 1 . . . Unreport Threat 2 | . . . . . . 2 . . . . . . . . . . . . . . . Locate Traps 3 | . . . . . . 1 1 . . . . 1 . . . . . . . . . Maintenance Status 1 | . . . . . . . 1 . . . . . . . . . . . . . . Patrol Status 1 | . . 1 . . . . . . . . . . . . . . . . . . . Hauler Manifests 1 | . . . . . . 1 . . . . . . . . . . . . . . . Zone Layout 4 | . . 2 . . . . 1 . . . . 1 . . . . . . . . . Fabricator Hacks 5 | . . . . . . . . . . . . 3 1 . . . . . 1 . . Network Status 2 | . . . . . . . . . . . . 1 1 . . . . . . . . Load Schematic 2 | . . . . . . . . . . . . 2 . . . . . . . . . Build 1 | . . . . . . . . . . . . . . . . . . . 1 . . Repair Station Hacks 2 | . . . . . . . 2 . . . . . . . . . . . . . . Scan Component 1 | . . . . . . . 1 . . . . . . . . . . . . . . Repair 1 | . . . . . . . 1 . . . . . . . . . . . . . . Recycling Unit Hacks . | . . . . . . . . . . . . . . . . . . . . . . Scanalyzer 1 | . . . . . . . . . . . . . 1 . . . . . . . . Insert Component 1 | . . . . . . . . . . . . . 1 . . . . . . . . Garrison Access Hacks 1 | . . . . . . 1 . . . . . . . . . . . . . . . Seal Access 1 | . . . . . . 1 . . . . . . . . . . . . . . . Unauthorized Hacks 12 | . 1 2 . . . 1 1 . . . . 4 1 . . . . 1 1 . . Terminals 7 | . 1 1 . . . 1 1 . . . . 2 . . . . . 1 . . . Botnet 7 | . 1 1 . . . 1 1 . . . . 2 . . . . . 1 . . . Fabricators 2 | . . . . . . . . . . . . 1 1 . . . . . . . . Haulers 2 | . . . . . . . . . . . . 1 1 . . . . . . . . Repair Stations . | . . . . . . . . . . . . . . . . . . . . . . Recycling Units 3 | . . 1 . . . . . . . . . 1 . . . . . . 1 . . Recyclers 2 | . . . . . . . . . . . . 1 . . . . . . 1 . . Mask 1 | . . 1 . . . . . . . . . . . . . . . . . . . Scanalyzers . | . . . . . . . . . . . . . . . . . . . . . . Garrison Access . | . . . . . . . . . . . . . . . . . . . . . . Data Cores Recovered 1 | . . . . . . . 1 . . . . . . . . . . . . . . Used 1 | . . . . . . . 1 . . . . . . . . . . . . . . Hacking Detections 41 | . 4 3 . . . 7 6 . . . . 9 4 . . . . 4 3 . 1 Full Trace Events 4 | . . . . . . 1 . . . . . 3 . . . . . . . . . Feedback Events . | . . . . . . . . . . . . . . . . . . . . . . Feedback Blocked . | . . . . . . . . . . . . . . . . . . . . . . Robot Schematics Acquired 3 | . . . . . . . . . . 3 . . . . . . . . . . . Robots Built . | . . . . . . . . . . . . . . . . . . . . . . Authchips . | . . . . . . . . . . . . . . . . . . . . . . Time . | . . . . . . . . . . . . . . . . . . . . . . Total Robot Build Rating . | . . . . . . . . . . . . . . . . . . . . . . Part Schematics Acquired 25 | . 3 . . . . . . . . 18 . . . . . 4 . . . . . Parts Built . | . . . . . . . . . . . . . . . . . . . . . . Authchips . | . . . . . . . . . . . . . . . . . . . . . . Time 139 | . . . . . . . . . . . . . . . . . . . 139 . . Total Part Build Rating . | . . . . . . . . . . . . . . . . . . . . . . Parts Repaired 1 | . . . . . . . 1 . . . . . . . . . . . . . . Time 16 | . . . . . . . 16 . . . . . . . . . . . . . . Parts Recycled . | . . . . . . . . . . . . . . . . . . . . . . Recycled Matter . | . . . . . . . . . . . . . . . . . . . . . . Retrieved Matter . | . . . . . . . . . . . . . . . . . . . . . . Retrieved Components . | . . . . . . . . . . . . . . . . . . . . . . Parts Scanalyzed . | . . . . . . . . . . . . . . . . . . . . . . Part Schematics Acquired . | . . . . . . . . . . . . . . . . . . . . . . Parts Damaged . | . . . . . . . . . . . . . . . . . . . . . . Bothacking | -11 -10 -9 -9 -9 -8 -8 -7 -7 -7 -7 -6 -6 -5 -5 -5 -5 -4 -4 -4 -4 -3 ------------ Run | Jun Mat Mat Min Exi Min Mat Fac Low Low Zio Pro Fac Fac Upp Upp Zhi Pro Fac Arm Lab Res Used RIF Installer . | . . . . . . . . . . . . . . . . . . . . . . Robots Hacked . | . . . . . . . . . . . . . . . . . . . . . . Non-combat . | . . . . . . . . . . . . . . . . . . . . . . Combat . | . . . . . . . . . . . . . . . . . . . . . . Robot Hacks Applied . | . . . . . . . . . . . . . . . . . . . . . . Relay Couplers Released 4 | . . . . . . . . . . . . . . . . . . . . . 4 Programmers 4 | . . . . . . . . . . . . . . . . . . . . . 4 Fabnet Peak Effective % . | . . . . . . . . . . . . . . . . . . . . . . Robots Rewired 5 | . . . . . . . . . . . 1 . . . . . . . 4 . . Allies Hacked . | . . . . . . . . . . . . . . . . . . . . . . Hacks Repelled . | . . . . . . . . . . . . . . . . . . . . . . Allies | -11 -10 -9 -9 -9 -8 -8 -7 -7 -7 -7 -6 -6 -5 -5 -5 -5 -4 -4 -4 -4 -3 -------- Run | Jun Mat Mat Min Exi Min Mat Fac Low Low Zio Pro Fac Fac Upp Upp Zhi Pro Fac Arm Lab Res Total Allies 12 | . . . . . . . . . . 4 1 . . . . . . . 7 . . Largest Group 7 | . . . . . . . . . . 4 4 1 . . . . . . 7 . . Highest-Rated Group 258 | . . . . . . . . . . 107 109 20 . . . . . . 258 . . Highest-Rated Ally 46 | . . . . . . . . . . 31 31 20 . . . . . . 46 . . Total Orders 2 | . . . . . . . . . . . . 1 . . 1 . . . . . . EXPLORE 2 | . . . . . . . . . . . . 1 . . 1 . . . . . . Ally Attacks 42 | . . . . . . . . . . . 31 . . . . . . . 11 . . Total Damage 1195 | . . . . . . . . . . . 794 . . . . . . . 401 . . Kills 10 | . . . . . . . . . . . 8 . . . . . . . 2 . . Allies Corrupted . | . . . . . . . . . . . . . . . . . . . . . . Allies Melted . | . . . . . . . . . . . . . . . . . . . . . . Intel | -11 -10 -9 -9 -9 -8 -8 -7 -7 -7 -7 -6 -6 -5 -5 -5 -5 -4 -4 -4 -4 -3 ------- Run | Jun Mat Mat Min Exi Min Mat Fac Low Low Zio Pro Fac Fac Upp Upp Zhi Pro Fac Arm Lab Res Robot Analysis Total 7 | . 1 . . . . 1 1 . . . . . . . . 4 . . . . . Derelict Logs Recovered 7 | . . . 1 . . . . 2 1 . . . . 1 2 . . . . . . Drone Launches 4 | . . . . . . . . . . . . 2 . . 2 . . . . . . Drone Recoveries 4 | . . . . . . . . . . . . 2 . . 2 . . . . . . Exploration | -11 -10 -9 -9 -9 -8 -8 -7 -7 -7 -7 -6 -6 -5 -5 -5 -5 -4 -4 -4 -4 -3 ------------- Run | Jun Mat Mat Min Exi Min Mat Fac Low Low Zio Pro Fac Fac Upp Upp Zhi Pro Fac Arm Lab Res Turns Passed 12337 | 28 311 581 632 238 361 1044 874 432 441 1330 350 1733 668 427 516 233 746 414 439 30 509 Spaces Moved 6729 | 31 220 234 346 148 191 529 494 266 285 856 196 846 365 268 270 142 392 193 183 10 264 Core 239 | 31 85 . . . . . . . . . . . . . . . . . . . 123 Treads 6354 | . 135 234 346 148 191 529 494 266 285 856 196 846 365 268 270 142 392 193 182 . 16 Legs 59 | . . . . . . . . . . . . . . . . . . . 1 10 48 Wheels 52 | . . . . . . . . . . . . . . . . . . . . . 52 Hover 25 | . . . . . . . . . . . . . . . . . . . . . 25 Flight . | . . . . . . . . . . . . . . . . . . . . . . Fastest Speed 50 | 50 50 160 160 160 160 152 155 155 155 155 155 155 148 148 148 156 156 155 155 330 50 Average Speed 154 | 50 117 165 160 160 160 153 155 155 155 155 155 155 154 148 154 156 161 157 187 330 135 Slowest Speed 360 | 50 160 240 160 160 160 160 155 155 155 155 155 158 156 148 242 156 246 160 330 330 360 Overloaded Moves . | . . . . . . . . . . . . . . . . . . . . . . Propulsion Burnouts . | . . . . . . . . . . . . . . . . . . . . . . Robots Hopped . | . . . . . . . . . . . . . . . . . . . . . . Cave-ins Triggered 1 | . . . 1 . . . . . . . . . . . . . . . . . . Teleports 1 | . . . . . . . . . . . . . . . . . . . 1 . . Exploration Rate (%) 36 | 2 43 23 44 48 59 56 13 45 54 85 41 22 14 47 53 60 61 9 13 6 13 Regions Visited 21 Branch Regions 13 Pre-discovered Areas 7 | . . . . 1 . . . . . 3 . . . . . 3 . . . . . Known Exits Taken 8 | . . 1 . . . 1 1 . . . 1 . 1 . . . . 1 1 1 . Unknown Exits Taken 13 | 1 1 . 1 1 1 . . 1 1 1 . 1 . 1 1 1 1 . . . . Scrap Searched 9 | . . . . . . . . 2 2 2 1 . . 1 . . 1 . . . . Spaces Dug 135 | . . . 64 . 10 . . . . . . 4 2 . 4 . 47 . . . 4 Terrain Destroyed 447 | . . 32 98 . 29 76 . . . . . 26 47 . 4 . 65 56 . . 14 Melee 5 | . . . . . . . . . . . . 4 1 . . . . . . . . Projectile 47 | . . . . . . . . . . . . . 1 . 4 . 25 3 . . 14 AOE 395 | . . 32 98 . 29 76 . . . . . 22 45 . . . 40 53 . . . Terrain Rammed . | . . . . . . . . . . . . . . . . . . . . . . Walls Destroyed . | . . . . . . . . . . . . . . . . . . . . . . Machines Disabled . | . . . . . . . . . . . . . . . . . . . . . . Actions | -11 -10 -9 -9 -9 -8 -8 -7 -7 -7 -7 -6 -6 -5 -5 -5 -5 -4 -4 -4 -4 -3 --------- Run | Jun Mat Mat Min Exi Min Mat Fac Low Low Zio Pro Fac Fac Upp Upp Zhi Pro Fac Arm Lab Res Total 7955 | 41 254 346 388 150 217 680 575 278 284 862 227 1080 433 293 367 154 453 244 264 9 356 Wait 320 | 4 14 35 2 . 6 39 33 1 . 3 1 37 10 18 59 . 12 3 12 . 31 Move 6707 | 30 219 233 344 147 190 528 493 265 284 855 195 845 364 267 269 141 391 192 182 9 264 Hop . | . . . . . . . . . . . . . . . . . . . . . . Pick Up 105 | 3 7 12 3 . . 20 7 2 . 2 1 12 11 2 7 2 1 2 9 . 2 Fast Attach 61 | 3 2 4 . . . 9 4 . . . 1 14 1 . 5 5 1 1 3 . 8 Attach 62 | 1 1 4 1 1 3 6 2 1 . . 1 8 6 . 1 . 2 8 8 . 8 Detach 24 | . 1 2 . 2 . 3 1 1 . . . 3 1 . 2 . 1 1 . . 6 Swap 62 | . . 4 6 . 2 10 3 . . . 1 13 7 . 3 . 8 5 . . . Drop 89 | . . 6 4 . . 19 8 1 . 2 4 10 9 2 15 6 1 1 . . 1 Fire 461 | . 10 46 27 . 15 46 24 7 . . 15 129 22 4 6 . 36 31 8 . 35 Melee 11 | . . . . . . . . . . . . 9 2 . . . . . . . . Ram 1 | . . . . . . . . . . . . . . . . . . . . . 1 Kick . | . . . . . . . . . . . . . . . . . . . . . . Crush 1 | . . . . . 1 . . . . . . . . . . . . . . . . Escape Stasis 1 | . . . 1 . . . . . . . . . . . . . . . . . . Rewire 50 | . . . . . . . . . . . 8 . . . . . . . 42 . . Trap . | . . . . . . . . . . . . . . . . . . . . . . Miscellaneous . | . . . . . . . . . . . . . . . . . . . . . . Route ------- -11/Junkyard -10/Materials -9/Materials (discovered 3 exits: *Min / Sto x2) -9/Mines -9/Exiles -8/Mines -8/Materials (discovered 2 exits: *Fac x2) -7/Factory -7/Lower Caves -7/Lower Caves (discovered 2 exits: *Fac / *Zio) -7/Zion -6/Proximity Caves -6/Factory -5/Factory -5/Upper Caves -5/Upper Caves (discovered 2 exits: *Fac / *Zhi) -5/Zhirov -4/Proximity Caves -4/Factory (discovered 3 exits: *Upp x2 / *Arm) -4/Armory -4/Lab -3/Research History --------- Turn | Location | Event 16 | -11/Junkyard | Discovered new exit (range 15) 29 | -11/Junkyard | Entered Materials 309 | -10/Materials | Build established: Mutant 316 | -10/Materials | Discovered new exit (range 11) 340 | -10/Materials | Entered another Materials area 340 | -9/Materials | Evolved 2 slots: Propulsion x1, Utility x1 533 | -9/Materials | Identified exit to Mines 533 | -9/Materials | Identified exit to Storage 921 | -9/Materials | Entered Mines 922 | -9/Mines | Assembled infested the area 927 | -9/Mines | Assisted by a Guerilla fighting off Assembled 928 | -9/Mines | Received a Rocket Launcher from a helpful Derelict 1256 | -9/Mines | Crushed by falling debris 1257 | -9/Mines | Core integrity fell below 50% 1396 | -9/Mines | Build established: Scavenger-Mutant 1433 | -9/Mines | Learned location of 1 exit from Materials 1545 | -9/Mines | Deemed a non-threat by the Exiles lab entrance 1547 | -9/Mines | Discovered new exit (range 5) 1553 | -9/Mines | Entered Exiles 1595 | -9/Exiles | Met 8R-AWN 1621 | -9/Exiles | Met EX-HEX 1687 | -9/Exiles | Met EX-DEC 1695 | -9/Exiles | Learned location of Zion (-7) 1770 | -9/Exiles | Discovered new exit (range 14) 1791 | -9/Exiles | Entered Mines 2119 | -8/Mines | Discovered new exit (range 12) 2152 | -8/Mines | Entered Materials 2152 | -8/Materials | Evolved 2 slots: Propulsion x1, Utility x1 2153 | -8/Materials | Identified exit to Factory 2451 | -8/Materials | Discovered exit to Factory (range 16) 2497 | -8/Materials | Build established: Mutant 2787 | -8/Materials | Destroyed 8 combat bots 3196 | -8/Materials | Entered Factory 3196 | -7/Factory | Evolved 2 slots: Utility x2 3414 | -7/Factory | Discovered new exit (range 14) 3495 | -7/Factory | Build established: Scavenger-Mutant 3719 | -7/Factory | Identified exit to Lower Caves 3767 | -7/Factory | Repaired Imp. Ion Engine 4070 | -7/Factory | Entered Lower Caves 4250 | -7/Lower Caves | Encountered a Warlord checkpoint 4303 | -7/Lower Caves | Learned Factory stockpile data 4413 | -7/Lower Caves | Discovered new exit (range 12) 4454 | -7/Lower Caves | Build established: Mutant 4502 | -7/Lower Caves | Entered another Lower Caves area 4538 | -7/Lower Caves | Discovered new exit (range 8) 4636 | -7/Lower Caves | Spotted B-75 Beast 4775 | -7/Lower Caves | Learned location of 1 exit from Proximity Caves 4873 | -7/Lower Caves | Discovered new exit (range 10) 4943 | -7/Lower Caves | Entered Zion 4996 | -7/Zion | Discovered new exit (range 15) 5388 | -7/Zion | Gained Derelict followers 5508 | -7/Zion | Learned location of Quarantine (-2) 5835 | -7/Zion | Learned location of Data Miner (-6) 6273 | -7/Zion | Entered Proximity Caves 6273 | -6/Proximity Caves | Accompanied by 4 allies 6274 | -6/Proximity Caves | Identified exit to Factory 6303 | -6/Proximity Caves | Attracted the attention of an 0b10 outpost 6623 | -6/Proximity Caves | Entered Factory 6623 | -6/Factory | Accompanied by 1 ally 6623 | -6/Factory | Evolved 2 slots: Power x1, Utility x1 6674 | -6/Factory | Garrison activated, responded to threat 7417 | -6/Factory | System corruption reached 10% 7870 | -6/Factory | Discovered new exit (range 29) 7995 | -6/Factory | Spotted B-75 Beast 8023 | -6/Factory | First assault squad dispatched 8356 | -6/Factory | Entered another Factory area 8356 | -5/Factory | Evolved 2 slots: Utility x1, Weapon x1 8357 | -5/Factory | Identified exit to Upper Caves 8956 | -5/Factory | First assault squad dispatched 9024 | -5/Factory | Entered Upper Caves 9038 | -5/Upper Caves | Learned Factory trap positions 9110 | -5/Upper Caves | Build established: Tank 9380 | -5/Upper Caves | Discovered new exit (range 15) 9451 | -5/Upper Caves | Entered another Upper Caves area 9459 | -5/Upper Caves | Discovered new exit (range 15) 9528 | -5/Upper Caves | Learned 4 Factory zone layouts 9942 | -5/Upper Caves | Discovered new exit (range 7) 9967 | -5/Upper Caves | Entered Zhirov 9967 | -5/Zhirov | Discovered new exit (range 3) 9999 | -5/Zhirov | Met Zhirov 10030 | -5/Zhirov | Learned location of Testing (-3) 10030 | -5/Zhirov | Learned location of Command (-1) 10044 | -5/Zhirov | Zhirov requested help retrieving the SGEMP Prototype 10068 | -5/Zhirov | Found Alien Artifact 10068 | -5/Zhirov | Identified Integrated Dissipator 10068 | -5/Zhirov | Installed Integrated Dissipator, increased core heat dissipation (+20) 10090 | -5/Zhirov | Found Alien Artifact 10200 | -5/Zhirov | Entered Proximity Caves 10403 | -4/Proximity Caves | Spotted B-86 Titan 10582 | -4/Proximity Caves | Build established: Mutant 10922 | -4/Proximity Caves | Discovered new exit (range 16) 10946 | -4/Proximity Caves | Entered Factory 10946 | -4/Factory | Evolved 2 slots: Utility x2 10947 | -4/Factory | Identified exit to Armory 10949 | -4/Factory | Loaded intel: 100 trap records 10979 | -4/Factory | Discovered new exit (range 16) 11106 | -4/Factory | Identified exit to Upper Caves 11151 | -4/Factory | Garrison activated, responded to threat 11348 | -4/Factory | Destroyed 9 combat bots 11360 | -4/Factory | Entered Armory 11388 | -4/Armory | Lost 15 parts (2p4n6u3w) 11736 | -4/Armory | Build established: Commander-Mutant 11798 | -4/Armory | Identified Transdimensional Reconstructor 11798 | -4/Armory | Warped through subspace to slip node 11798 | -4/Armory | Discovered new exit (range 1) 11798 | -4/Armory | Identified exit to Lab 11799 | -4/Armory | Entered Lab 11799 | -4/Lab | Discovered new exit (range 9) 11823 | -4/Lab | Identified exit to Research 11826 | -4/Lab | Lost 7 parts (2p2n3u) 11829 | -4/Lab | Entered Research 11829 | -3/Research | Evolved 2 slots: Propulsion x2 12049 | -3/Research | Build established: Mutant 12138 | -3/Research | Spotted B-86 Titan 12233 | -3/Research | Released all parts (4) 12237 | -3/Research | Core integrity fell below 50% 12272 | -3/Research | Lost 11 parts (2p4n3u2w) 12321 | -3/Research | Core integrity fell below 20% 12338 | -3/Research | Destroyed by S-43 Plague with Heavy Machine Gun Last Messages --------------- 12309_ S-43 Plague destroyed. 12309_ K-01 Serf collects debris. 12310_ S-43 Plague suffers critical hit (Meltdown). 12310_ Xenon Bombardment Thruster melted. 12310_ Lgt. Antimatter Reactor melted. 12310_ Xenon Bombardment Thruster melted. 12310_ K-01 Serf collects debris. 12311_ W-44 Eye sends out distress signal. 12311_ Lgt. Particle Reactor destroyed. 12312_ K-01 Serf collects debris. 12319_ R-10 Processor collects Sml. Battery. 12319_ U-05 Engineer builds a Door. 12322_ R-10 Processor collects Adv. Remote Datajack. 12327_ Imp. Antigrav System destroyed. 12328_ Mic. Antimatter Reactor destroyed. 12329_ ALERT: Rogue bot located, Programmers report to Research Zone 2E. 12335_ U-05 Engineer destroyed. 12335_ W-44 Eye sends out distress signal. 12335_ U-05 Engineer builds a Door. 12337_ K-01 Serf destroyed. Map ----- +----------------------------------------------------+ | ?????????????????????????????????????????????????? | | ?????????????????????????????????????????????????? | | ?????????????????????????????????????????????????? | | ?????????????????????????????????????????????????? | | ?????????????????????????????????????????????????? | | ?????????????????????????????????????????????????? | | ?????????????????????????????????????????????????? | | ?????????????????????????????????????????????????? | | ?????????????????????????????????????????????????? | | ?????????????????????????????????????????????????? | | ?????????????????????????????????????????????????? | | ?????????????????????????????????????????????????? | | ?????????????????????????????????????????????????? | | ???????????????? ????????????????????????????????? | | ??????????????? ????###########????????????????? | | ???????????????? ???? ##???????????????? | | ?????????????????? ???? T#?????????????### | | ??????????????????? ???? ??????????????#] | | ???????????????????? ???? #?????????###### | | ????????????????######+##### #?????????# / | | ????????????????? # #?????????# #### | | ?????????????# # #####+##### #??# | | ?????????????# ! ""Y""u # !%=* #??# | | ?????????????# """"" + !=%= s #??# | | ?????????????# u # ! u #### | | ?????????????# !@ ;p pp u / | | ?????????????###""" """######+#######+#####/#### | | ?????????????????""S""????? ????# ??# ??# | | ????????????????????????? ??# # ??# | | ???????????????????????? """ ?# # ?### | | ???????????????????????#"" """ # # ???# | | ???????????????????????#"" """ # # #??# | | ???????????????????????#"" ???# # #??? | | ????????????????????????G ????# ! # #??? | | ????????????????????????"" ""???###########??? | | ?????????????????????????" ""????????????????? | | ?????????????????????????? "?????????????????? | | ???????????????????????????? ?????????????????? | | ?????????????????????????????????????????????????? | | ?????????????????????????????????????????????????? | | ?????????????????????????????????????????????????? | | ?????????????????????????????????????????????????? | | ?????????????????????????????????????????????????? | | ?????????????????????????????????????????????????? | | ?????????????????????????????????????????????????? | | ?????????????????????????????????????????????????? | | ?????????????????????????????????????????????????? | | ?????????????????????????????????????????????????? | | ???????????????????????????????????????????####### | | ???????????????????????????????????????????# | +----------------------------------------------------+ Best States ------------- Heat Dissipation 101 Energy Generation 39 Energy Capacity 490 Matter Stores 300 Matter Capacity 300 Sight Range 16 Terrain Scan Range 16 Terrain Scan Density 210 Armor Coverage 825 Resistance: KI 25 Resistance: EM 15 Evasion (%) 53 Targeting Accuracy 16 Recoil Reduction 4 Matter Filtering 50 Offensive Hacking 10 Item Schematics ----------------- Huge Storage Unit | -10/Materials | Hacked Seismic Detector | -10/Materials | Hacked Hcp. Storage Unit | -10/Materials | Hacked Tactical Coordination Suite | -7/Zion | Free Hvy. Beamcaster | -7/Zion | Free Barrage Gun | -7/Zion | Free Battle Cannon | -7/Zion | Free Hvy. Plasma Cannon | -7/Zion | Archive Mak. Hacking Suite | -7/Zion | Archive Imp. Shield Generator | -7/Zion | Archive Mak. Cloaking Device | -7/Zion | Archive Adv. Cooling System | -7/Zion | Archive Kinecellerator | -7/Zion | Archive Bore Cannon | -7/Zion | Archive Xenon Bombardment Thruster | -7/Zion | Archive Cloaking Device | -7/Zion | Archive Adv. Assault Cannon | -7/Zion | Archive Drone Bay | -7/Zion | Archive Imp. Hacking Suite | -7/Zion | Archive Corruption Screen | -7/Zion | Archive Imp. Transmission Jammer | -7/Zion | Archive Assault Drone Bay | -5/Zhirov | Free Exp. Heat Sink | -5/Zhirov | Free Exp. Optical Array | -5/Zhirov | Free Imp. Arc Thrower | -5/Zhirov | Free Robot Schematics ------------------ B-36 Bruiser | -7/Zion | Archive B-48 Gladiator | -7/Zion | Archive L-41 Fighter | -7/Zion | Archive Fabricated ------------ Nothing Alien Tech Used ----------------- Integrated Dissipator Transdimensional Reconstructor Achievements -------------- None Challenges ------------ None Game ------ Seed MakeshiftBeamSink Manual? 0 Play Time 02:10:57 Cumulative 306.4 hours Start 2023.04.16 @ 21:14:24 End 2023.04.22 @ 14:52:02 Sessions 3 Manual Loads 0 Difficulty Rogue Special Mode None Game No. 127 Rogue 127 Adventurer 0 Explorer 0 Win Type - Total 12 Types 4/2/2/1/1/0/1/1/0 Lore% 85 Gallery% 83 Achievement% 70 Wizard Run 0 Options --------- ASCII 0 Keyboard 1 Movement Numpad Keybinds 0 Fullscreen 2 Font 18/X11 Map View 76x50 Tactical HUD 1 Map Filters NONE Filters NONE Steam 1 RUN: 50a951fa-6736-4148-a834-3506cacd77e7